bitfinex/quotes_ETHUSD_20220212
["timestamp","ask_amount","ask_price","bid_price","bid_amount"]
[1644661091549,0.00118431,2926.1,2926.0,0.62643937]
[1644661091757,0.00118431,2926.1,2925.7,0.1708]
[1644661091956,0.00118431,2926.1,2925.8,0.6264005]
[1644661092749,0.00118431,2926.1,2925.8,1.43332065]
[1644661092950,0.00118431,2926.1,2925.9,0.6264005]
[1644661093155,0.00118431,2926.1,2925.9,1.4809461]
[1644661093354,0.00118431,2926.1,2926.0,0.6264005]
[1644661094804,0.00118431,2926.1,2925.6,1.2013]
[1644661095005,0.00118431,2926.1,2925.4,0.00231631]
[1644661095204,0.81263686,2926.1,2925.4,0.17311631]
[1644661095407,0.03585928,2926.0,2925.7,0.00893914]
[1644661095603,0.81145255,2925.9,2925.7,0.00893914]
[1644661096404,0.81145255,2925.9,2925.5,0.75924896]
[1644661096603,0.81145255,2925.9,2925.7,0.0089392]
[1644661097213,0.03585928,2926.0,2925.7,0.0089392]
[1644661097407,0.03585928,2926.0,2925.8,0.626098]
[1644661097851,0.03585928,2926.0,2925.7,0.00893914]
[1644661098053,0.81070097,2925.9,2925.7,0.00893914]
[1644661098858,0.81070097,2925.9,2925.4,0.00231631]
[1644661099056,0.81070097,2925.9,2925.7,0.0089392]
[1644661100058,0.81070097,2925.9,2925.4,0.00231631]
[1644661100260,0.81070097,2925.9,2925.7,0.0089392]
[1644661101308,0.81070097,2925.9,2925.4,0.00231631]
[1644661101598,0.81070097,2925.9,2925.7,0.0089392]
[1644661102403,0.81070097,2925.9,2925.4,0.00231631]
[1644661102600,0.81070097,2925.9,2925.7,0.0089392]
[1644661103205,0.03585928,2926.0,2925.7,0.0089392]
[1644661103605,0.03585928,2926.0,2925.5,0.71860017]
[1644661103805,0.03585928,2926.0,2925.7,0.00893914]
[1644661104807,0.03585928,2926.0,2925.5,0.71860017]
[1644661105062,0.03585928,2926.0,2925.7,0.00893914]
[1644661105257,0.05402686,2926.0,2925.7,0.00893914]
[1644661106063,0.05402686,2926.0,2925.5,0.71860017]
[1644661106358,0.05402686,2926.0,2925.7,0.00893914]
[1644661107258,0.05402686,2926.0,2925.5,0.71860017]
[1644661107458,0.05402686,2926.0,2925.7,0.00893914]
[1644661108459,0.05402686,2926.0,2925.5,0.71860017]
[1644661108662,0.05402686,2926.0,2925.7,0.00893914]
[1644661109606,0.05402686,2926.0,2925.5,0.71860017]
[1644661109807,0.05402686,2926.0,2925.7,0.00893914]
[1644661110808,0.05402686,2926.0,2925.5,0.71860017]
[1644661111108,0.05402686,2926.0,2925.4,0.17311631]
[1644661111109,0.79613563,2925.9,2925.7,0.00893914]
[1644661111307,0.79613563,2925.9,2925.4,0.17311631]
[1644661111308,0.00100632,2925.6,2925.4,0.17311631]
[1644661111509,0.00100632,2925.6,2925.5,0.64072961]
[1644661111708,0.00100632,2925.6,2925.4,0.17311631]
[1644661111912,0.00100632,2925.6,2925.5,0.64073359]
[1644661112758,0.00100632,2925.6,2925.5,1.13173359]
[1644661113553,0.00100632,2925.6,2925.5,2.01147515]
[1644661115657,0.05447793,2925.6,2925.5,2.01147515]
[1644661116899,0.05447793,2925.6,2925.5,1.52047515]
[1644661125617,0.82800552,2925.6,2925.5,1.52047515]
[1644661126418,0.82800552,2925.6,2925.5,0.64073359]
[1644661129060,0.82800552,2925.6,2925.4,0.65198938]
[1644661129261,0.05447793,2925.6,2925.5,0.64073359]
[1644661129661,0.05447793,2925.6,2925.4,0.65198938]
[1644661129862,0.76889697,2925.5,2925.4,0.65198938]
[1644661130062,0.76889697,2925.5,2925.4,0.6430499]
[1644661130262,0.76889697,2925.5,2925.4,0.65198944]
[1644661131161,0.76889697,2925.5,2925.4,0.6430499]
[1644661131405,0.7692553,2925.5,2925.4,0.6430499]
[1644661131606,0.05447793,2925.6,2925.4,0.6430499]
[1644661131807,0.05447793,2925.6,2925.5,0.67629012]
[1644661132205,0.82367542,2925.6,2925.4,0.67864296]
[1644661132405,0.05447793,2925.6,2925.5,0.67633218]
[1644661132606,0.82363616,2925.6,2925.4,0.01125579]
[1644661132806,0.05447793,2925.6,2925.4,0.01125579]
[1644661133207,0.05447793,2925.6,2925.5,0.67633166]
[1644661133409,0.76915381,2925.5,2925.4,0.01125579]
[1644661133613,0.76915381,2925.5,2925.4,0.68925417]
[1644661133808,0.76915381,2925.5,2925.4,0.01098762]
[1644661134212,0.76915381,2925.5,2925.4,0.69792548]
[1644661134911,0.76915381,2925.5,2925.4,0.68925417]
[1644661135356,0.76915381,2925.5,2925.4,0.00231631]
[1644661135756,0.76915381,2925.5,2925.4,0.68925417]
[1644661136166,0.76915381,2925.5,2925.4,0.00231631]
[1644661136560,0.76915381,2925.5,2925.4,0.68925417]
[1644661137562,0.76915381,2925.5,2925.4,0.00231631]
[1644661137959,0.76915381,2925.5,2925.4,0.68925417]
[1644661137960,0.7553036,2925.5,2925.4,0.68925417]
[1644661138159,0.05447793,2925.6,2925.4,0.68925417]
[1644661138361,0.75534379,2925.5,2925.4,0.68925417]
[1644661138560,0.05447793,2925.6,2925.4,0.00231631]
[1644661138823,0.75531849,2925.5,2925.4,0.00231631]
[1644661139011,0.05447793,2925.6,2925.4,0.68925417]
[1644661139212,0.75532706,2925.5,2925.4,0.68925417]
[1644661139510,0.75536473,2925.5,2925.4,0.68925417]
[1644661139711,0.05447793,2925.6,2925.4,0.68925417]
[1644661139911,0.05447793,2925.6,2925.4,0.00231631]
[1644661139912,0.75532089,2925.5,2925.4,0.00231631]
[1644661140111,0.05447793,2925.6,2925.4,0.00231631]
[1644661140311,0.75531286,2925.5,2925.4,0.00231631]
[1644661140510,0.05447793,2925.6,2925.4,0.69257698]
[1644661140710,0.7553141,2925.5,2925.4,0.69257698]
[1644661140910,0.05447793,2925.6,2925.4,0.69257698]
[1644661141112,0.05447793,2925.6,2925.5,0.69025603]
[1644661141716,0.80981841,2925.6,2925.5,0.69025603]
[1644661141915,0.80887933,2925.6,2925.5,0.69025603]
[1644661142112,0.05349585,2925.6,2925.4,0.17324631]
[1644661142313,0.05349585,2925.6,2925.5,0.69025603]
[1644661142766,0.75898649,2925.6,2925.5,0.69025603]
[1644661143365,0.00261863,2925.6,2925.5,0.69025603]
[1644661145271,0.75898649,2925.6,2925.5,0.69025603]
[1644661145472,0.81084579,2925.6,2925.5,0.69025603]
[1644661150051,0.75737418,2925.6,2925.5,0.71250917]
[1644661150755,4.55737418,2925.6,2925.5,0.71250917]
[1644661150953,1.87262845,2925.6,2925.5,0.71250917]
[1644661151152,2.87262845,2925.6,2925.5,0.71250917]
[1644661151354,2.87262845,2925.6,2925.5,0.02225314]
[1644661151355,1.87262845,2925.6,2925.5,0.02225314]
[1644661151660,2.57262845,2925.6,2925.5,0.02225314]
[1644661152253,0.92817418,2925.6,2925.5,0.02225314]
[1644661152454,1.92817418,2925.6,2925.5,0.02225314]
[1644661152653,1.57262845,2925.6,2925.5,0.02225314]
[1644661152854,2.57262845,2925.6,2925.5,0.02225314]
[1644661153057,1.92817418,2925.6,2925.5,0.02225314]
[1644661153255,4.0461016,2925.6,2925.5,0.02225314]
[1644661153655,5.0461016,2925.6,2925.5,0.02225314]
[1644661154108,5.69055587,2925.6,2925.5,0.02225314]
[1644661154314,5.57963218,2925.6,2925.5,0.02225314]
[1644661154709,2.40182845,2925.6,2925.5,0.02225314]
[1644661154908,4.58634095,2925.6,2925.5,0.02225314]
[1644661155109,5.58634095,2925.6,2925.5,0.02225314]
[1644661155309,4.94188668,2925.6,2925.4,0.00231631]
[1644661155509,5.24188668,2925.6,2925.4,0.01073037]
[1644661155911,3.813613,2925.5,2925.4,0.01073037]
[1644661156310,3.813613,2925.5,2925.4,0.00231631]
[1644661158857,5.113613,2925.5,2925.4,0.00231631]
[1644661159058,2.05636786,2925.5,2925.4,0.00231631]
[1644661159457,0.75636786,2925.5,2925.4,0.00231631]
[1644661159661,0.3,2925.5,2925.4,0.00231631]
[1644661159857,3.86012096,2925.5,2925.4,0.00231631]
[1644661160362,1.75636786,2925.5,2925.4,0.00231631]
[1644661160757,0.75636786,2925.5,2925.4,0.00231631]
[1644661164514,0.75737418,2925.6,2925.4,0.00231631]
[1644661164719,0.75636786,2925.5,2925.4,0.00231631]
[1644661165150,0.00100632,2925.6,2925.4,0.01073042]
[1644661165151,0.75737418,2925.6,2925.4,0.01073042]
[1644661165349,0.75636786,2925.5,2925.4,0.01073042]
[1644661165548,0.75636786,2925.5,2925.4,0.00841411]
[1644661165954,0.75636786,2925.5,2925.3,0.02213824]
[1644661166349,0.75636786,2925.4,2925.3,0.03055239]
[1644661166552,1.05636786,2925.5,2925.3,0.03055239]
[1644661166750,0.75636786,2925.4,2925.3,0.03055239]
[1644661167150,0.75636786,2925.4,2925.3,0.02213824]
[1644661168911,3.94595583,2925.4,2925.3,0.02213824]
[1644661169512,0.75636786,2925.4,2925.3,0.02213824]
[1644661170410,0.75636786,2925.4,2925.2,0.00841425]
[1644661170609,0.75636786,2925.3,2925.2,0.00841425]
[1644661170810,0.75636786,2925.3,2925.1,0.02601596]
[1644661171010,3.13836165,2925.6,2925.2,0.68621869]
[1644661171211,2.06601193,2925.5,2925.2,0.0084143]
[1644661171409,0.76601193,2925.4,2925.2,0.0084143]
[1644661171810,0.76601193,2925.3,2925.2,0.0084143]
[1644661172009,0.76601193,2925.5,2925.2,0.67777868]
[1644661172208,0.76601193,2925.5,2925.2,0.68619298]
[1644661172408,0.76601193,2925.5,2925.2,0.0084143]
[1644661173151,3.04338592,2925.4,2925.1,0.02601596]
[1644661173350,0.76601193,2925.3,2925.1,0.02601596]
[1644661173550,0.3,2925.5,2925.2,0.00841425]
[1644661173750,0.76606546,2925.4,2925.2,0.00841425]
[1644661174157,0.76606546,2925.3,2925.2,0.00841425]
[1644661174356,0.76606546,2925.3,2925.2,0.67777722]
[1644661174554,0.76606546,2925.3,2925.1,0.02601596]
[1644661174759,0.3,2925.5,2925.2,0.0084143]
[1644661174955,0.76622619,2925.4,2925.2,0.0084143]
[1644661175556,0.76622619,2925.4,2924.8,0.0031407]
[1644661175856,3.82093961,2925.4,2925.2,0.0084143]
[1644661176057,0.76622619,2925.3,2925.2,0.0084143]
[1644661176308,0.76622619,2925.4,2925.2,0.0084143]
[1644661176508,0.76622619,2925.3,2925.2,0.0084143]
[1644661176908,1.39806057,2925.3,2924.8,0.0031407]
[1644661177107,3.25,2925.1,2924.3,3.92409338]
[1644661177317,3.11099269,2925.2,2924.4,0.66971191]
[1644661177318,5.64445427,2924.9,2924.4,0.66971191]
[1644661177611,1.06622619,2924.8,2923.7,0.4208]
[1644661177813,0.76622619,2924.7,2923.8,0.65807039]
[1644661178008,0.6618,2924.6,2923.8,0.65807039]
[1644661178209,0.3,2924.4,2923.8,0.65807039]
[1644661178408,0.76622619,2924.3,2923.9,0.88086702]
[1644661178610,0.76622619,2924.3,2924.0,0.65807039]
[1644661179209,1.06622619,2924.3,2924.0,0.65807039]
[1644661179410,0.76622619,2924.2,2924.0,0.65807039]
[1644661180056,0.76622619,2924.2,2923.9,0.88086702]
[1644661180460,1.0,2924.4,2923.9,0.88086702]
[1644661180656,0.3,2924.3,2923.9,0.88417409]
[1644661180857,3.32364995,2924.5,2923.9,0.00330707]
[1644661181257,1.0,2924.4,2923.9,0.00330707]
[1644661181459,1.6,2924.6,2923.9,0.00330707]
[1644661181460,3.05346453,2924.3,2923.9,0.00330707]
[1644661181758,0.3,2924.3,2924.0,0.00330696]
[1644661182157,1.0,2924.4,2924.0,0.00330696]
[1644661182158,1.3,2924.4,2924.0,0.00330696]
[1644661182360,0.3,2924.6,2924.0,0.00330696]
[1644661182760,3.5,2924.7,2923.8,0.34206]
[1644661182974,3.5,2924.9,2923.8,0.34206]
[1644661183163,0.00894952,2924.8,2924.2,0.00895164]
[1644661183459,0.00894952,2924.8,2924.7,0.84138714]
[1644661184112,0.1708,2925.4,2924.7,0.84138714]
[1644661184311,0.00895024,2924.9,2924.7,0.84138714]
[1644661184714,0.00075081,2924.9,2924.7,0.84138714]
[1644661185312,0.1708,2925.4,2924.7,0.84138714]
[1644661185518,0.00100632,2925.6,2924.7,0.79138714]
[1644661185711,0.00100632,2925.6,2924.8,0.1708]
[1644661186312,0.00100632,2925.6,2924.7,0.79138714]
[1644661187016,0.64546059,2925.6,2924.7,0.79138714]
[1644661187212,3.30307555,2925.5,2924.7,0.79138714]
[1644661187664,0.00100632,2925.6,2924.7,0.96237714]
[1644661187863,0.00564757,2925.2,2924.7,0.96237714]
[1644661188467,0.00564757,2925.2,2924.7,0.79138714]
[1644661188868,1.0,2925.4,2924.7,0.79138714]
[1644661189065,0.00895001,2925.1,2924.7,0.79138714]
[1644661189666,1.6,2925.5,2924.7,0.79138714]
[1644661189867,3.70138284,2925.5,2924.7,0.79138714]
[1644661190069,3.70138284,2925.5,2924.8,0.02222]
[1644661190266,1.0,2925.4,2924.8,0.02222]
[1644661190467,3.44197923,2925.3,2924.8,0.02222]
[1644661190675,0.4708,2925.2,2924.8,0.02222]
[1644661191312,1.4708,2925.2,2924.8,0.02222]
[1644661191506,0.3,2925.2,2924.8,0.02222]
[1644661191708,3.05117139,2925.3,2924.8,0.02222]
[1644661192611,0.00564132,2925.2,2924.8,0.02222]
[1644661193612,3.10622284,2925.3,2924.8,0.02222]
[1644661193814,0.00894965,2925.2,2924.8,0.03117088]
[1644661194819,4.16674039,2925.5,2924.8,0.02222]
[1644661195055,0.00894965,2925.2,2924.8,0.03117088]
[1644661195256,0.00894965,2925.2,2924.8,0.00895088]
[1644661195658,0.00894965,2925.2,2924.8,0.0120105]
[1644661196074,0.00100632,2925.6,2924.8,0.00305962]
[1644661196364,0.00894965,2925.2,2924.8,0.0120105]
[1644661196764,0.00894965,2925.2,2924.8,0.00895088]
[1644661197165,3.07369062,2925.5,2924.6,0.00305962]
[1644661197364,0.64546059,2925.6,2924.7,0.17099]
[1644661197569,0.00894965,2925.2,2924.8,0.0120105]
[1644661198369,0.00100632,2925.6,2924.8,0.00305962]
[1644661198566,0.00100632,2925.6,2925.2,0.85056807]
[1644661200015,0.00894951,2925.5,2925.3,0.67577035]
[1644661200216,0.76695217,2925.4,2925.3,0.67577035]
[1644661201817,0.76695217,2925.4,2925.1,0.67577035]
[1644661202316,0.76695217,2925.3,2925.2,0.67577035]
[1644661202558,0.76695217,2925.4,2925.0,0.67577035]
[1644661202757,0.76695217,2925.3,2925.1,0.67577035]
[1644661202957,0.76695217,2925.4,2925.0,0.67577035]
[1644661203258,0.76695217,2925.3,2925.1,0.67572083]
[1644661203461,0.76695217,2925.2,2924.9,0.88750707]
[1644661203656,0.76695217,2925.2,2925.0,0.67572064]
[1644661204662,0.76695217,2925.1,2925.0,0.67572064]
[1644661204863,0.00894985,2925.2,2925.0,0.67572064]
[1644661205063,0.76166189,2925.1,2925.0,0.67572064]
[1644661205265,0.00894985,2925.2,2925.0,0.67572064]
[1644661205666,0.00100632,2925.6,2925.0,0.67572064]
[1644661205867,0.00894985,2925.2,2925.0,0.67572064]
[1644661206512,0.00041767,2925.2,2925.0,0.67572064]
[1644661206909,0.00100632,2925.6,2925.0,0.67572064]
[1644661207711,0.75475475,2925.6,2925.0,0.67572064]
[1644661207911,0.75475475,2925.6,2925.0,1.50799075]
[1644661208110,0.75475475,2925.6,2925.1,0.67572064]
[1644661208312,0.75475475,2925.6,2925.2,0.67572064]
[1644661208313,0.00563471,2925.4,2925.2,0.67572064]
[1644661208515,0.75274843,2925.3,2925.0,0.83227011]
[1644661208718,0.75274843,2925.2,2925.1,0.67132143]
[1644661209115,0.75274843,2925.2,2925.1,1.16232143]
[1644661209315,1.05475475,2925.6,2925.1,1.16232143]
[1644661209516,0.00894964,2925.3,2925.2,0.67128121]
[1644661209915,0.76169807,2925.3,2925.2,0.67128121]
[1644661210561,0.00100632,2925.6,2925.2,0.67128121]
[1644661210761,0.00894968,2925.4,2925.2,0.67128121]
[1644661210961,0.75274843,2925.3,2925.2,0.67128121]
[1644661211366,0.00894968,2925.4,2925.2,0.67128121]
[1644661211561,0.75274843,2925.3,2925.2,0.67128121]
[1644661211762,0.75475475,2925.6,2925.2,0.67128121]
[1644661211962,0.00894962,2925.4,2925.2,0.67128121]
[1644661212161,0.75274843,2925.3,2925.2,0.67128121]
[1644661212361,0.00894962,2925.4,2925.2,0.67128121]
[1644661212665,0.75274843,2925.3,2925.2,0.67128121]
[1644661213061,0.75274843,2925.3,2925.2,1.16228121]
[1644661213261,0.00894962,2925.4,2925.2,1.16228121]
[1644661213462,0.75274843,2925.3,2925.2,1.16228121]
[1644661213815,0.00894962,2925.4,2925.2,1.16212931]
[1644661214019,0.75274843,2925.3,2925.2,0.491]
[1644661214211,0.75274843,2925.3,2925.2,1.16212176]
[1644661214712,0.00894968,2925.4,2925.2,1.16212176]
[1644661214914,0.75274843,2925.3,2925.2,0.491]
[1644661215114,0.75274843,2925.3,2925.2,1.16207211]
[1644661215314,0.00100632,2925.6,2925.2,1.16207211]
[1644661215515,0.00100632,2925.6,2925.3,0.67107211]
[1644661215715,0.00100632,2925.6,2925.4,0.491]
[1644661215914,0.00100632,2925.6,2925.5,0.67107211]
[1644661217113,0.77302241,2925.6,2925.5,0.67107211]
[1644661217963,0.00100632,2925.6,2925.5,0.67107211]
[1644661218162,0.77302241,2925.6,2925.5,0.67107211]
[1644661219967,0.77302241,2925.6,2925.5,0.69468889]
[1644661221819,0.77302241,2925.6,2925.5,0.02361678]
[1644661222010,0.77402241,2925.6,2925.5,0.02361678]
[1644661224218,0.77302241,2925.6,2925.5,0.02361678]
[1644661224419,0.77402241,2925.6,2925.5,0.02361678]
[1644661225454,0.77402241,2925.6,2925.0,0.01097484]
[1644661225455,0.77302241,2925.6,2925.0,0.01097484]
[1644661225661,0.30200632,2925.6,2925.1,0.68473933]
[1644661225854,0.77201609,2925.5,2925.1,0.68473933]
[1644661226055,0.77201609,2925.4,2925.1,0.68473933]
[1644661226265,0.77201609,2925.3,2925.2,0.68473933]
[1644661226471,0.77201609,2925.3,2925.1,1.46463886]
[1644661226660,0.00791352,2925.5,2925.2,0.68473933]
[1644661226862,0.76093766,2925.4,2925.2,0.68473933]
[1644661227565,0.76072391,2925.3,2925.2,0.68473933]
[1644661227763,0.00791357,2925.4,2925.2,0.68473933]
[1644661228362,0.76102531,2925.3,2925.2,0.68473933]
[1644661228563,0.76092868,2925.3,2925.2,0.68473933]
[1644661228817,0.00789637,2925.4,2925.2,0.68473933]
[1644661229618,0.00100632,2925.6,2925.2,0.68473933]
[1644661230014,0.00789637,2925.4,2925.2,0.68473933]
[1644661230814,0.00100632,2925.6,2925.2,0.68473933]
[1644661231216,0.00100632,2925.6,2925.2,4.01670017]
[1644661231420,0.00693801,2925.4,2925.3,0.6618]
[1644661232015,0.00100632,2925.6,2925.3,0.6618]
[1644661233560,0.00100632,2925.6,2925.4,3.57534722]
[1644661233756,0.00100632,2925.6,2925.4,4.06634722]
[1644661233961,0.00100632,2925.6,2925.4,0.491]
[1644661234161,0.00100632,2925.6,2925.5,3.36294479]
[1644661234563,0.00100632,2925.6,2925.4,0.491]
[1644661234767,0.00100632,2925.6,2925.5,3.53270318]
[1644661234963,0.00100632,2925.6,2925.5,3.36190318]
[1644661235269,0.81625427,2926.4,2925.6,3.25]
[1644661235469,0.86306416,2926.7,2925.9,0.8543604]
[1644661235470,0.64545427,2926.6,2925.9,0.8543604]
[1644661235764,0.64445427,2926.6,2926.0,0.491]
[1644661235968,0.00894882,2926.1,2926.0,0.491]
[1644661236613,0.00894882,2926.1,2926.0,1.19364326]
[1644661236810,0.00894882,2926.1,2926.0,1.36444326]
[1644661237008,0.00379179,2926.6,2926.0,1.36444326]
[1644661237214,0.00894877,2926.2,2926.0,1.36444326]
[1644661237415,0.00894877,2926.2,2926.1,1.1564]
[1644661237612,0.00894877,2926.2,2926.1,5.12908467]
[1644661238214,0.00379179,2926.8,2926.5,0.75513585]
[1644661239617,0.01273988,2926.8,2926.5,0.75513585]
[1644661240063,0.01273988,2926.8,2926.1,5.12908467]
[1644661240460,0.00379179,2926.8,2926.1,5.12908467]
[1644661240657,0.00891316,2926.6,2926.1,5.12908467]
[1644661241061,0.00891316,2926.6,2926.2,0.75931265]
[1644661241261,0.00891316,2926.6,2926.2,1.25031265]
[1644661241958,0.00891322,2926.5,2926.2,1.25031265]
[1644661242361,0.00891322,2926.5,2926.2,4.6200418]
[1644661242962,0.95618626,2927.1,2926.2,4.6200418]
[1644661243160,0.00891328,2926.5,2926.2,4.6200418]
[1644661243561,0.00891328,2926.5,2926.2,4.61133054]
[1644661244019,0.81525427,2927.1,2926.2,4.61133054]
[1644661244219,0.64445427,2927.1,2926.2,4.61133054]
[1644661244420,0.00894843,2926.5,2926.2,4.61133054]
[1644661244719,0.00894843,2926.5,2926.2,4.83698348]
[1644661245131,0.00894843,2926.5,2926.2,5.69201265]
[1644661245320,0.81525427,2927.2,2926.3,2.06977753]
[1644661245521,0.00894843,2926.5,2926.4,0.491]
[1644661246423,0.64445427,2927.3,2926.4,0.491]
[1644661246625,0.64445427,2927.3,2927.0,0.88378589]
[1644661246826,0.1708,2927.5,2927.0,0.88378589]
[1644661246827,0.64445427,2927.4,2927.0,0.88378589]
[1644661247863,0.00894746,2927.3,2927.0,0.88378589]
[1644661248662,0.00894746,2927.3,2926.6,0.491]
[1644661248868,0.64445427,2927.4,2926.6,0.491]
[1644661249068,0.00894752,2927.3,2926.5,1.2259]
[1644661249269,1.40610731,2927.3,2926.5,1.2259]
[1644661249469,0.75370552,2927.2,2926.5,1.2259]
[1644661249669,0.75370552,2927.2,2926.5,1.24522904]
[1644661249870,0.75370552,2927.2,2926.5,4.65182694]
[1644661250070,0.75270552,2927.2,2926.5,4.65182694]
[1644661250275,0.75270552,2927.1,2926.5,4.82270694]
[1644661250472,0.76165338,2927.0,2926.5,4.82270694]
[1644661250671,0.75270552,2926.9,2926.5,4.82270694]
[1644661250870,0.75270552,2926.8,2926.5,3.59680694]
[1644661251071,0.75270552,2926.7,2926.5,3.59680694]
[1644661251325,0.001,2927.3,2926.5,3.59680694]
[1644661251514,0.00894809,2926.8,2926.5,3.59680694]
[1644661252419,0.81625427,2927.5,2926.5,3.59680694]
[1644661252420,0.74327997,2926.7,2926.5,3.59680694]
[1644661252619,0.64445427,2927.4,2926.5,3.59680694]
[1644661252620,0.001,2927.3,2926.9,0.81455665]
[1644661252823,0.64445427,2927.4,2926.6,1.20338716]
[1644661253019,0.64545427,2927.4,2926.6,1.20338716]
[1644661253820,0.001,2927.4,2926.9,0.83842952]
[1644661254020,0.00894769,2927.1,2926.9,0.83842952]
[1644661254220,0.74336545,2927.0,2926.9,0.83842952]
[1644661258263,0.74336545,2927.0,2926.6,1.71371545]
[1644661258465,0.74336545,2926.9,2926.6,0.51032829]
[1644661258666,0.74336545,2926.8,2926.6,0.51032829]
[1644661258913,0.00894775,2927.1,2926.6,0.51032829]
[1644661259115,0.71849155,2927.0,2926.6,0.51032829]
[1644661259312,0.72227466,2927.0,2926.6,0.51032829]
[1644661259512,0.72227466,2927.0,2926.6,1.31491687]
[1644661259911,0.72743947,2926.9,2926.6,1.31491687]
[1644661260116,0.00894792,2926.9,2926.8,0.01940332]
[1644661260315,0.72745002,2926.9,2926.8,0.01940332]
[1644661260914,0.7185021,2926.9,2926.8,0.01940332]
[1644661261112,0.7185021,2927.3,2926.8,0.01940332]
[1644661261314,0.00894786,2927.0,2926.8,0.01940332]
[1644661261516,0.7185021,2926.9,2926.8,0.01940332]
[1644661263181,0.6685021,2926.9,2926.8,0.01940332]
[1644661263582,0.00894786,2927.0,2926.8,0.01940332]
[1644661264588,0.00378311,2927.4,2926.8,0.01940332]
[1644661264784,0.0089478,2927.0,2926.8,0.01940332]
[1644661265182,0.0089478,2927.0,2926.8,0.02904907]
[1644661265784,0.00378311,2927.4,2926.8,0.02904907]
[1644661265990,0.0089478,2927.0,2926.8,0.02904907]
[1644661266819,0.64823738,2927.4,2926.8,0.02904907]
[1644661267015,0.94823738,2927.4,2926.8,0.02904907]
[1644661267217,0.0089478,2927.0,2926.8,0.02904907]
[1644661268214,0.64823738,2927.4,2926.8,0.02904907]
[1644661268417,0.0089478,2927.0,2926.8,0.02904907]
[1644661269218,0.81903738,2927.4,2926.8,0.02904907]
[1644661269620,0.0089478,2927.0,2926.8,0.02904907]
[1644661270461,0.81903738,2927.4,2926.8,0.02904907]
[1644661270659,0.0089478,2927.0,2926.8,0.02904907]
[1644661271660,0.81903738,2927.4,2926.8,0.02904907]
[1644661271861,0.64445427,2927.3,2926.8,0.02904907]
[1644661272064,0.0089478,2927.0,2926.8,0.02904907]
[1644661272866,0.00378311,2927.2,2926.5,1.3515386]
[1644661273266,0.0089478,2927.0,2926.9,0.86019432]
[1644661273466,0.0089478,2927.0,2926.5,1.1807]
[1644661274120,0.00378311,2927.1,2926.5,1.1807]
[1644661274317,0.00894797,2926.9,2926.5,1.1807]
[1644661274917,0.00894797,2926.9,2926.5,1.92218518]
[1644661275417,0.00478311,2927.1,2926.8,0.02904907]
[1644661275620,0.64445427,2927.1,2926.8,0.02904907]
[1644661276819,0.65340202,2927.1,2926.8,0.02904907]
[1644661277661,0.64445427,2927.0,2926.8,0.02904907]
[1644661277861,0.64923738,2927.2,2926.8,0.02904907]
[1644661278060,0.00894775,2927.1,2926.8,0.02904907]
[1644661278967,0.64823738,2927.2,2926.8,0.02904907]
[1644661279163,0.00894775,2927.1,2927.0,0.63694384]
[1644661279364,0.65340202,2927.1,2927.0,0.63694384]
[1644661279962,0.00894775,2927.1,2927.0,0.63694384]
[1644661280162,0.86027237,2927.3,2927.0,0.63694384]
[1644661280361,0.00833444,2927.2,2926.8,0.02904907]
[1644661280565,0.64970075,2927.0,2926.8,0.02904907]
[1644661281620,0.65803536,2927.0,2926.9,0.75141785]
[1644661282714,0.64970075,2927.0,2926.9,0.75141785]
[1644661283313,1.35105584,2927.0,2926.9,1.49814299]
[1644661283516,1.35205584,2927.0,2926.9,1.49814299]
[1644661287467,0.70235509,2927.0,2926.9,1.49814299]
[1644661292420,0.70135509,2927.0,2926.9,1.49814299]
[1644661294469,0.70135509,2927.0,2926.9,1.98914299]
[1644661296070,0.00837238,2927.1,2926.9,1.98914299]
[1644661296339,0.1708,2927.7,2926.9,1.98914299]
[1644661296340,0.001,2927.5,2927.2,3.954139]
[1644661296528,0.00378826,2927.7,2927.3,0.67586969]
[1644661296729,0.00378826,2927.7,2927.3,1.67586969]
[1644661296928,3.50478826,2928.1,2927.3,1.67586969]
[1644661297130,0.001,2928.0,2927.3,1.67586969]
[1644661297337,0.00478826,2928.3,2928.2,0.64381994]
[1644661297530,0.001,2928.3,2927.9,0.66181]
[1644661297729,0.00478826,2928.3,2927.9,0.66181]
[1644661297929,3.50478826,2928.3,2927.9,0.66181]
[1644661298129,0.001,2928.2,2927.9,0.66181]
[1644661298330,0.00378826,2928.3,2927.9,0.66181]
[1644661298531,0.00378826,2928.3,2928.0,0.78976383]
[1644661298731,3.03641021,2928.5,2928.0,0.78976383]
[1644661298932,0.001,2928.4,2928.0,0.78976383]
[1644661299232,0.86306063,2928.5,2928.0,0.78976383]
[1644661299734,0.00878941,2928.3,2928.0,0.78976383]
[1644661300566,0.86406063,2928.6,2928.0,0.78976383]
[1644661300764,0.0087824,2928.3,2928.0,0.78976383]
[1644661301769,1.16406063,2928.6,2927.8,0.34159]
[1644661301969,0.00840761,2928.3,2927.8,0.34159]
[1644661302768,0.00840761,2928.3,2928.0,0.84914141]
[1644661302970,0.00478826,2928.4,2928.0,0.84914141]
[1644661303170,0.00840771,2928.2,2928.0,0.84914141]
[1644661304217,0.00478826,2928.7,2928.0,0.84914141]
[1644661304419,0.00841472,2928.2,2928.0,0.84914141]
[1644661305519,0.00844075,2928.2,2928.1,0.02063405]
[1644661306619,0.64738816,2928.6,2928.1,0.02063405]
[1644661306620,0.00378826,2928.5,2928.1,0.02063405]
[1644661306819,0.0084407,2928.3,2928.1,0.02063405]
[1644661307867,0.00378826,2928.5,2928.1,0.02063405]
[1644661308063,0.00843818,2928.3,2928.1,0.02063405]
[1644661309067,0.00378826,2928.5,2928.1,0.02063405]
[1644661309272,0.00843818,2928.3,2928.1,0.02063405]
[1644661309868,0.00843818,2928.3,2928.0,0.84914141]
[1644661310269,0.65117642,2928.7,2928.0,0.84914141]
[1644661310474,0.00843822,2928.3,2928.0,0.84914141]
[1644661311324,0.68492425,2928.7,2928.0,0.84914141]
[1644661311325,0.65117642,2928.7,2928.0,0.84914141]
[1644661311712,0.00843822,2928.3,2928.0,0.84914141]
[1644661312516,0.65117642,2928.7,2928.0,0.84914141]
[1644661312911,0.00843845,2928.3,2928.0,0.84914141]
[1644661313416,0.00843845,2928.3,2927.9,0.0207105]
[1644661313817,0.00478826,2928.5,2927.9,0.0207105]
[1644661314017,0.0084385,2928.2,2927.9,0.0207105]
[1644661315062,0.00378826,2928.5,2928.2,0.76672983]
[1644661315263,0.68492553,2928.6,2928.2,0.76672983]
[1644661315464,0.68492553,2928.6,2927.8,1.3699]
[1644661315672,0.68492553,2928.6,2927.6,5.12806065]
[1644661315673,0.64738816,2928.4,2927.6,3.07853405]
[1644661315866,3.48618206,2928.3,2927.6,3.07853405]
[1644661316064,0.001,2928.2,2927.6,3.07853405]
[1644661316267,0.65208245,2928.2,2927.6,3.07853405]
[1644661316464,3.12984983,2928.1,2927.6,1.52837529]
[1644661316666,0.65208245,2928.0,2927.6,1.52837529]
[1644661316868,0.65108245,2927.9,2927.4,5.59745833]
[1644661317068,0.65108245,2927.8,2927.4,1.80855833]